{"text_format":"1","workbook":"xlsx","n_sheets":4,"sheets":["निर्देश","STUDENT_DATA","PAGE1","PAGE2"],"not_rendered":{"charts":0,"images":4,"macros":1,"external_links":0,"defined_names":4,"comments":1,"pivot_tables":0},"unopened":[],"bounds":{"document_bytes":16777216,"sheet_cells":100000,"rows_first":2000,"rows_last":500,"rows_between":2000,"halvings":0,"cell_chars":16384,"cell_head_chars":4096},"cells_cut":0,"cells_raw":0,"read":"whole","date_system":"1900"}

{"sheet":"निर्देश","index":0,"n_rows":13,"n_cols":16,"rows_kept":13,"cut":false,"hidden":false,"merged":[[1,1,1,12],[2,1,2,12],[3,1,3,12],[4,1,4,12],[5,1,5,12],[6,1,6,12],[12,2,12,12],[12,15,12,25],[9,1,9,13],[10,2,10,12],[11,2,11,12]]}
[]
[null,"महत्वपूर्ण निर्देश"]
[null,"सभी आवश्यक निर्देश ध्यान पूर्वक पढे "]
[null,"सबसे पहले STUDENT DATA शीट में अपने विद्यालय का नाम लिखे "]
[null,"जिस भी विधार्थी का फॉर्म भरना है उसकी जानकारी शीट STUDENT DATA में भरे आप जो भी जानकारी भरेगे वो फॉर्म में आने लग जाएगी "]
[null,"यद्यपि फॉर्म में सम्पूर्ण आवश्यक जानकारी शीट के माध्यम से भरी जाएगी फिर भी फॉर्म भरने के बाद यदि कोई \nजानकारी आपको आवश्यक लगती है तो मैनुअल भरे "]
[null,"जिस भी छात्र /छात्रा का भरा हुआ फॉर्म प्रिन्ट करना चाहते हो PAGE1 शीट में उस छात्र/छात्रा की क्रम संख्या \nलिखे जो STUDENT DATA शीट में भरते समय लिखी थी "]
[]
[]
[null,"हमारे द्वारा बनाई गई आवश्यक फाइल डॉक्यूमेंट एक्सल फाइल प्राप्त करने के लिए निमन्नालिखित लिंक पर क्लिक करे  "]
[null,{"$f":"_xlfn.UNICHAR(9758)","v":"☞"},"https://rajsevak.com/shivraj-meghwanshi/"]
[null,{"$f":"_xlfn.UNICHAR(9758)","v":"☞"},"https://rajteachers.net/shivraj-meghwanshi"]
[null,"☞","https://www.ashwinisharma.com/p/shivraj-meghwanshi-excel-program-excel.html",null,null,null,null,null,null,null,null,null,null,null,null,"टीम राउमावि मोराझड़ी "]

{"sheet":"STUDENT_DATA","index":1,"n_rows":349,"n_cols":68,"rows_kept":349,"cut":false,"hidden":false,"merged":[[0,0,0,7],[0,9,0,42]]}
["राजकीय उच्च माध्यमिक विद्यालय ",null,null,null,null,null,null,null,"2025-26"]
["SR NO","Name*","Dob*","प्रवेश दिनांक*","प्रवेशांक(SR NO)*","Religion*","FatherName*","MotherName*","प्रवेश कक्षा ","सेक्शन","Category*","Gender*","प्रवेश का प्रकार *","संकाय (कक्षा 11 ओर 12 )","वैकल्पिक विषय 1","वैकल्पिक विषय 2","वैकल्पिक विषय 3","वैकल्पिक विषय 4","तृतीय भाषा(6-10 )","वोकेशनल ट्रेड (9/10वीं)","पूर्व विद्यालय","पूर्व विद्यालय का S. R. नम्बरः","अंतिम कक्षा","परिणाम","Aadhar No of Student*","Jan Aadhar Card*","राशन कार्ड नम्बर","1. Mobile (Father/Mother/Guardian)*","2. Mobile (Father/Mother/Guardian)","CWSN Status","(YES)CWSN Status","राज्य का नाम*","कितने वर्षों से रह रहा है","Student Permanent Address*","पिता आधार नंबर ","पिता उच्चतम योग्यता","पिता व्यवसाय *","पिता वार्षिक आय ","माता आधार नंबर ","माता उच्चतम योग्यता","व्यवसाय *","वार्षिक आय ","Distance From School"]
[{"$f":"IF(ISBLANK(B3),\"\",COUNTA($B$3:B3))","v":1},"गणेश ","1999-07-03","2025-07-10",878,"हिंदू","जगदीश मेघवंशी ","मीनाक्षी देवी",12,"A","SC","पुरुष","नव प्रवेश","विज्ञान","हिन्दी साहित्य","भूगोल","राजनीति विज्ञान","हिंदी / अंग्रेज़ी","संस्कृत","कॉरपोरेट कम्युनिकेशन  ","GSSS RAMSAR",546,11,"अध्ययनरत",869546887691,2365444513,9210901008,9625256179,8725622934,"नहीं",null,"राजस्थान","जन्म से ","केरिया खुर्द",963673179412,"स्नातक ","कृषि मजदूर",6800,123456789124,"निरक्षर","गृहिणी",1000,3,null,null,null,null,null,null,null,null,null,null,null,null,null,null,null,null,null,null,null,null,null,null,null,"हिन्दी साहित्य"]
[{"$f":"IF(ISBLANK(B4),\"\",COUNTA($B$3:B4))","v":""},null,null,null,null,null,null,null,null,null,null,null,null,null,null,null,null,null,null,null,null,null,null,null,null,null,null,null,null,null,null,null,null,null,null,null,null,null,null,null,null,null,null,null,null,null,null,null,null,null,null,null,null,null,null,null,null,null,null,null,null,null,null,null,null,null,"अंग्रेज़ी साहित्य"]
[{"$f":"IF(ISBLANK(B5),\"\",COUNTA($B$3:B5))","v":""},null,null,null,null,null,null,null,null,null,null,null,null,null,null,null,null,null,null,null,null,null,null,null,null,null,null,null,null,null,null,null,null,null,null,null,null,null,null,null,null,null,null,null,null,null,null,null,null,null,null,null,null,null,null,null,null,null,null,null,null,null,null,null,null,null,"राजनीति विज्ञान"]
[{"$f":"IF(ISBLANK(B6),\"\",COUNTA($B$3:B6))","v":""},null,null,null,null,null,null,null,null,null,null,null,null,null,null,null,null,null,null,null,null,null,null,null,null,null,null,null,null,null,null,null,null,null,null,null,null,null,null,null,null,null,null,null,null,null,null,null,null,null,null,null,null,null,null,null,null,null,null,null,null,null,null,null,null,null,"इतिहास"]
[{"$f":"IF(ISBLANK(B7),\"\",COUNTA($B$3:B7))","v":""},null,null,null,null,null,null,null,null,null,null,null,null,null,null,null,null,null,null,null,null,null,null,null,null,null,null,null,null,null,null,null,null,null,null,null,null,null,null,null,null,null,null,null,null,null,null,null,null,null,null,null,null,null,null,null,null,null,null,null,null,null,null,null,null,null,"भूगोल"]
[{"$f":"IF(ISBLANK(B8),\"\",COUNTA($B$3:B8))","v":""},null,null,null,null,null,null,null,null,null,null,null,null,null,null,null,null,null,null,null,null,null,null,null,null,null,null,null,null,null,null,null,null,null,null,null,null,null,null,null,null,null,null,null,null,null,null,null,null,null,null,null,null,null,null,null,null,null,null,null,null,null,null,null,null,null,"नागरिक शास्त्र"]
[{"$f":"IF(ISBLANK(B9),\"\",COUNTA($B$3:B9))","v":""},null,null,null,null,null,null,null,null,null,null,null,null,null,null,null,null,null,null,null,null,null,null,null,null,null,null,null,null,null,null,null,null,null,null,null,null,null,null,null,null,null,null,null,null,null,null,null,null,null,null,null,null,null,null,null,null,null,null,null,null,null,null,null,null,null,"मनोविज्ञान","राजस्थान"]
[{"$f":"IF(ISBLANK(B10),\"\",COUNTA($B$3:B10))","v":""},null,null,null,null,null,null,null,null,null,null,null,null,null,null,null,null,null,null,null,null,null,null,null,null,null,null,null,null,null,null,null,null,null,null,null,null,null,null,null,null,null,null,null,null,null,null,null,null,null,null,null,null,null,null,null,null,null,null,null,null,null,null,null,null,null,"समाजशास्त्र","आंध्र प्रदेश"]
[{"$f":"IF(ISBLANK(B11),\"\",COUNTA($B$3:B11))","v":""},null,null,null,null,null,null,null,null,null,null,null,null,null,null,null,null,null,null,null,null,null,null,null,null,null,null,null,null,null,null,null,null,null,null,null,null,null,null,null,null,null,null,null,null,null,null,null,null,null,null,null,null,null,null,null,null,null,null,null,null,null,null,null,null,null,"दर्शनशास्त्र","अरुणाचल प्रदेश"]
[{"$f":"IF(ISBLANK(B12),\"\",COUNTA($B$3:B12))","v":""},null,null,null,null,null,null,null,null,null,null,null,null,null,null,null,null,null,null,null,null,null,null,null,null,null,null,null,null,null,null,null,null,null,null,null,null,null,null,null,null,null,null,null,null,null,null,null,null,null,null,null,null,null,null,null,null,null,null,null,null,null,null,null,null,null,"गृह विज्ञान","असम"]
[{"$f":"IF(ISBLANK(B13),\"\",COUNTA($B$3:B13))","v":""},null,null,null,null,null,null,null,null,null,null,null,null,null,null,null,null,null,null,null,null,null,null,null,null,null,null,null,null,null,null,null,null,null,null,null,null,null,null,null,null,null,null,null,null,null,null,null,null,null,null,null,null,null,null,null,null,null,null,null,null,null,null,null,null,null,"संगीत","बिहार"]
[{"$f":"IF(ISBLANK(B14),\"\",COUNTA($B$3:B14))","v":""},null,null,null,null,null,null,null,null,null,null,null,null,null,null,null,null,null,null,null,null,null,null,null,null,null,null,null,null,null,null,null,null,null,null,null,null,null,null,null,null,null,null,null,null,null,null,null,null,null,null,null,null,null,null,null,null,null,null,null,null,null,null,null,null,null,"चित्रकला","छत्तीसगढ़"]
[{"$f":"IF(ISBLANK(B15),\"\",COUNTA($B$3:B15))","v":""},null,null,null,null,null,null,null,null,null,null,null,null,null,null,null,null,null,null,null,null,null,null,null,null,null,null,null,null,null,null,null,null,null,null,null,null,null,null,null,null,null,null,null,null,null,null,null,null,null,null,null,null,null,null,null,null,null,null,null,null,null,null,null,null,null,"शारीरिक शिक्षा","गोवा"]
[{"$f":"IF(ISBLANK(B16),\"\",COUNTA($B$3:B16))","v":""},null,null,null,null,null,null,null,null,null,null,null,null,null,null,null,null,null,null,null,null,null,null,null,null,null,null,null,null,null,null,null,null,null,null,null,null,null,null,null,null,null,null,null,null,null,null,null,null,null,null,null,null,null,null,null,null,null,null,null,null,null,null,null,null,null,"शिक्षाशास्त्र","गुजरात"]
[{"$f":"IF(ISBLANK(B17),\"\",COUNTA($B$3:B17))","v":""},null,null,null,null,null,null,null,null,null,null,null,null,null,null,null,null,null,null,null,null,null,null,null,null,null,null,null,null,null,null,null,null,null,null,null,null,null,null,null,null,null,null,null,null,null,null,null,null,null,null,null,null,null,null,null,null,null,null,null,null,null,null,null,null,null,"अर्थशास्त्र","हरियाणा"]
[{"$f":"IF(ISBLANK(B18),\"\",COUNTA($B$3:B18))","v":""},null,null,null,null,null,null,null,null,null,null,null,null,null,null,null,null,null,null,null,null,null,null,null,null,null,null,null,null,null,null,null,null,null,null,null,null,null,null,null,null,null,null,null,null,null,null,null,null,null,null,null,null,null,null,null,null,null,null,null,null,null,null,null,null,null,"कंप्यूटर","हिमाचल प्रदेश"]
[{"$f":"IF(ISBLANK(B19),\"\",COUNTA($B$3:B19))","v":""},null,null,null,null,null,null,null,null,null,null,null,null,null,null,null,null,null,null,null,null,null,null,null,null,null,null,null,null,null,null,null,null,null,null,null,null,null,null,null,null,null,null,null,null,null,null,null,null,null,null,null,null,null,null,null,null,null,null,null,null,null,null,null,null,null,"पर्यावरण अध्ययन","झारखंड"]
[{"$f":"IF(ISBLANK(B20),\"\",COUNTA($B$3:B20))","v":""},null,null,null,null,null,null,null,null,null,null,null,null,null,null,null,null,null,null,null,null,null,null,null,null,null,null,null,null,null,null,null,null,null,null,null,null,null,null,null,null,null,null,null,null,null,null,null,null,null,null,null,null,null,null,null,null,null,null,null,null,null,null,null,null,null,"सैन्य विज्ञान / NCC","कर्नाटक"]
[{"$f":"IF(ISBLANK(B21),\"\",COUNTA($B$3:B21))","v":""},null,null,null,null,null,null,null,null,null,null,null,null,null,null,null,null,null,null,null,null,null,null,null,null,null,null,null,null,null,null,null,null,null,null,null,null,null,null,null,null,null,null,null,null,null,null,null,null,null,null,null,null,null,null,null,null,null,null,null,null,null,null,null,null,null,"योग","केरल"]
[{"$f":"IF(ISBLANK(B22),\"\",COUNTA($B$3:B22))","v":""},null,null,null,null,null,null,null,null,null,null,null,null,null,null,null,null,null,null,null,null,null,null,null,null,null,null,null,null,null,null,null,null,null,null,null,null,null,null,null,null,null,null,null,null,null,null,null,null,null,null,null,null,null,null,null,null,null,null,null,null,null,null,null,null,null,"हिंदी / अंग्रेज़ी","मध्य प्रदेश"]
[{"$f":"IF(ISBLANK(B23),\"\",COUNTA($B$3:B23))","v":""},null,null,null,null,null,null,null,null,null,null,null,null,null,null,null,null,null,null,null,null,null,null,null,null,null,null,null,null,null,null,null,null,null,null,null,null,null,null,null,null,null,null,null,null,null,null,null,null,null,null,null,null,null,null,null,null,null,null,null,null,null,null,null,null,null,null,"महाराष्ट्र"]
[{"$f":"IF(ISBLANK(B24),\"\",COUNTA($B$3:B24))","v":""},null,null,null,null,null,null,null,null,null,null,null,null,null,null,null,null,null,null,null,null,null,null,null,null,null,null,null,null,null,null,null,null,null,null,null,null,null,null,null,null,null,null,null,null,null,null,null,null,null,null,null,null,null,null,null,null,null,null,null,null,null,null,null,null,null,"गणित","मणिपुर"]
[{"$f":"IF(ISBLANK(B25),\"\",COUNTA($B$3:B25))","v":""},null,null,null,null,null,null,null,null,null,null,null,null,null,null,null,null,null,null,null,null,null,null,null,null,null,null,null,null,null,null,null,null,null,null,null,null,null,null,null,null,null,null,null,null,null,null,null,null,null,null,null,null,null,null,null,null,null,null,null,null,null,null,null,null,null,"व्यावसायिक अध्ययन","मेघालय"]
[{"$f":"IF(ISBLANK(B26),\"\",COUNTA($B$3:B26))","v":""},null,null,null,null,null,null,null,null,null,null,null,null,null,null,null,null,null,null,null,null,null,null,null,null,null,null,null,null,null,null,null,null,null,null,null,null,null,null,null,null,null,null,null,null,null,null,null,null,null,null,null,null,null,null,null,null,null,null,null,null,null,null,null,null,null,"लेखा शास्त्र","मिज़ोरम"]
[{"$f":"IF(ISBLANK(B27),\"\",COUNTA($B$3:B27))","v":""},null,null,null,null,null,null,null,null,null,null,null,null,null,null,null,null,null,null,null,null,null,null,null,null,null,null,null,null,null,null,null,null,null,null,null,null,null,null,null,null,null,null,null,null,null,null,null,null,null,null,null,null,null,null,null,null,null,null,null,null,null,null,null,null,null,"अर्थशास्त्र","नागालैंड"]
[{"$f":"IF(ISBLANK(B28),\"\",COUNTA($B$3:B28))","v":""},null,null,null,null,null,null,null,null,null,null,null,null,null,null,null,null,null,null,null,null,null,null,null,null,null,null,null,null,null,null,null,null,null,null,null,null,null,null,null,null,null,null,null,null,null,null,null,null,null,null,null,null,null,null,null,null,null,null,null,null,null,null,null,null,null,"कंप्यूटर अनुप्रयोग","ओडिशा"]
[{"$f":"IF(ISBLANK(B29),\"\",COUNTA($B$3:B29))","v":""},null,null,null,null,null,null,null,null,null,null,null,null,null,null,null,null,null,null,null,null,null,null,null,null,null,null,null,null,null,null,null,null,null,null,null,null,null,null,null,null,null,null,null,null,null,null,null,null,null,null,null,null,null,null,null,null,null,null,null,null,null,null,null,null,null,"बैंकिंग और बीमा","पंजाब"]
[{"$f":"IF(ISBLANK(B30),\"\",COUNTA($B$3:B30))","v":""},null,null,null,null,null,null,null,null,null,null,null,null,null,null,null,null,null,null,null,null,null,null,null,null,null,null,null,null,null,null,null,null,null,null,null,null,null,null,null,null,null,null,null,null,null,null,null,null,null,null,null,null,null,null,null,null,null,null,null,null,null,null,null,null,null,"व्यावसायिक गणित","सिक्किम"]
[{"$f":"IF(ISBLANK(B31),\"\",COUNTA($B$3:B31))","v":""},null,null,null,null,null,null,null,null,null,null,null,null,null,null,null,null,null,null,null,null,null,null,null,null,null,null,null,null,null,null,null,null,null,null,null,null,null,null,null,null,null,null,null,null,null,null,null,null,null,null,null,null,null,null,null,null,null,null,null,null,null,null,null,null,null,"विपणन","तमिलनाडु"]
[{"$f":"IF(ISBLANK(B32),\"\",COUNTA($B$3:B32))","v":""},null,null,null,null,null,null,null,null,null,null,null,null,null,null,null,null,null,null,null,null,null,null,null,null,null,null,null,null,null,null,null,null,null,null,null,null,null,null,null,null,null,null,null,null,null,null,null,null,null,null,null,null,null,null,null,null,null,null,null,null,null,null,null,null,null,"सांख्यिकी","तेलंगाना"]
[{"$f":"IF(ISBLANK(B33),\"\",COUNTA($B$3:B33))","v":""},null,null,null,null,null,null,null,null,null,null,null,null,null,null,null,null,null,null,null,null,null,null,null,null,null,null,null,null,null,null,null,null,null,null,null,null,null,null,null,null,null,null,null,null,null,null,null,null,null,null,null,null,null,null,null,null,null,null,null,null,null,null,null,null,null,"संगठनात्मक व्यवहार","त्रिपुरा"]
[{"$f":"IF(ISBLANK(B34),\"\",COUNTA($B$3:B34))","v":""},null,null,null,null,null,null,null,null,null,null,null,null,null,null,null,null,null,null,null,null,null,null,null,null,null,null,null,null,null,null,null,null,null,null,null,null,null,null,null,null,null,null,null,null,null,null,null,null,null,null,null,null,null,null,null,null,null,null,null,null,null,null,null,null,null,"वित्तीय साक्षरता","उत्तर प्रदेश"]
[{"$f":"IF(ISBLANK(B35),\"\",COUNTA($B$3:B35))","v":""},null,null,null,null,null,null,null,null,null,null,null,null,null,null,null,null,null,null,null,null,null,null,null,null,null,null,null,null,null,null,null,null,null,null,null,null,null,null,null,null,null,null,null,null,null,null,null,null,null,null,null,null,null,null,null,null,null,null,null,null,null,null,null,null,null,"पर्यावरण अध्ययन","उत्तराखंड"]
[{"$f":"IF(ISBLANK(B36),\"\",COUNTA($B$3:B36))","v":""},null,null,null,null,null,null,null,null,null,null,null,null,null,null,null,null,null,null,null,null,null,null,null,null,null,null,null,null,null,null,null,null,null,null,null,null,null,null,null,null,null,null,null,null,null,null,null,null,null,null,null,null,null,null,null,null,null,null,null,null,null,null,null,null,null,"हिंदी / अंग्रेज़ी","पश्चिम बंगाल"]
[{"$f":"IF(ISBLANK(B37),\"\",COUNTA($B$3:B37))","v":""}]
[{"$f":"IF(ISBLANK(B38),\"\",COUNTA($B$3:B38))","v":""},null,null,null,null,null,null,null,null,null,null,null,null,null,null,null,null,null,null,null,null,null,null,null,null,null,null,null,null,null,null,null,null,null,null,null,null,null,null,null,null,null,null,null,null,null,null,null,null,null,null,null,null,null,null,null,null,null,null,null,null,null,null,null,null,null,"गणित"]
[{"$f":"IF(ISBLANK(B39),\"\",COUNTA($B$3:B39))","v":""},null,null,null,null,null,null,null,null,null,null,null,null,null,null,null,null,null,null,null,null,null,null,null,null,null,null,null,null,null,null,null,null,null,null,null,null,null,null,null,null,null,null,null,null,null,null,null,null,null,null,null,null,null,null,null,null,null,null,null,null,null,null,null,null,null,"जीवविज्ञान"]
[{"$f":"IF(ISBLANK(B40),\"\",COUNTA($B$3:B40))","v":""},null,null,null,null,null,null,null,null,null,null,null,null,null,null,null,null,null,null,null,null,null,null,null,null,null,null,null,null,null,null,null,null,null,null,null,null,null,null,null,null,null,null,null,null,null,null,null,null,null,null,null,null,null,null,null,null,null,null,null,null,null,null,null,null,null,"रसायन"]
[{"$f":"IF(ISBLANK(B41),\"\",COUNTA($B$3:B41))","v":""},null,null,null,null,null,null,null,null,null,null,null,null,null,null,null,null,null,null,null,null,null,null,null,null,null,null,null,null,null,null,null,null,null,null,null,null,null,null,null,null,null,null,null,null,null,null,null,null,null,null,null,null,null,null,null,null,null,null,null,null,null,null,null,null,null,"भौतिकी"]
[{"$f":"IF(ISBLANK(B42),\"\",COUNTA($B$3:B42))","v":""},null,null,null,null,null,null,null,null,null,null,null,null,null,null,null,null,null,null,null,null,null,null,null,null,null,null,null,null,null,null,null,null,null,null,null,null,null,null,null,null,null,null,null,null,null,null,null,null,null,null,null,null,null,null,null,null,null,null,null,null,null,null,null,null,null,"कंप्यूटर साइंस / आईटी"]
[{"$f":"IF(ISBLANK(B43),\"\",COUNTA($B$3:B43))","v":""},null,null,null,null,null,null,null,null,null,null,null,null,null,null,null,null,null,null,null,null,null,null,null,null,null,null,null,null,null,null,null,null,null,null,null,null,null,null,null,null,null,null,null,null,null,null,null,null,null,null,null,null,null,null,null,null,null,null,null,null,null,null,null,null,null,"भूगोल"]
[{"$f":"IF(ISBLANK(B44),\"\",COUNTA($B$3:B44))","v":""},null,null,null,null,null,null,null,null,null,null,null,null,null,null,null,null,null,null,null,null,null,null,null,null,null,null,null,null,null,null,null,null,null,null,null,null,null,null,null,null,null,null,null,null,null,null,null,null,null,null,null,null,null,null,null,null,null,null,null,null,null,null,null,null,null,"पर्यावरण विज्ञान"]
[{"$f":"IF(ISBLANK(B45),\"\",COUNTA($B$3:B45))","v":""},null,null,null,null,null,null,null,null,null,null,null,null,null,null,null,null,null,null,null,null,null,null,null,null,null,null,null,null,null,null,null,null,null,null,null,null,null,null,null,null,null,null,null,null,null,null,null,null,null,null,null,null,null,null,null,null,null,null,null,null,null,null,null,null,null,"शारीरिक शिक्षा"]
[{"$f":"IF(ISBLANK(B46),\"\",COUNTA($B$3:B46))","v":""},null,null,null,null,null,null,null,null,null,null,null,null,null,null,null,null,null,null,null,null,null,null,null,null,null,null,null,null,null,null,null,null,null,null,null,null,null,null,null,null,null,null,null,null,null,null,null,null,null,null,null,null,null,null,null,null,null,null,null,null,null,null,null,null,null,"कृषि विज्ञान"]
[{"$f":"IF(ISBLANK(B47),\"\",COUNTA($B$3:B47))","v":""},null,null,null,null,null,null,null,null,null,null,null,null,null,null,null,null,null,null,null,null,null,null,null,null,null,null,null,null,null,null,null,null,null,null,null,null,null,null,null,null,null,null,null,null,null,null,null,null,null,null,null,null,null,null,null,null,null,null,null,null,null,null,null,null,null,"गृह विज्ञान"]
[{"$f":"IF(ISBLANK(B48),\"\",COUNTA($B$3:B48))","v":""},null,null,null,null,null,null,null,null,null,null,null,null,null,null,null,null,null,null,null,null,null,null,null,null,null,null,null,null,null,null,null,null,null,null,null,null,null,null,null,null,null,null,null,null,null,null,null,null,null,null,null,null,null,null,null,null,null,null,null,null,null,null,null,null,null,"इंजीनियरिंग ड्राइंग"]
[{"$f":"IF(ISBLANK(B49),\"\",COUNTA($B$3:B49))","v":""},null,null,null,null,null,null,null,null,null,null,null,null,null,null,null,null,null,null,null,null,null,null,null,null,null,null,null,null,null,null,null,null,null,null,null,null,null,null,null,null,null,null,null,null,null,null,null,null,null,null,null,null,null,null,null,null,null,null,null,null,null,null,null,null,null,"खगोल विज्ञान"]
[{"$f":"IF(ISBLANK(B50),\"\",COUNTA($B$3:B50))","v":""},null,null,null,null,null,null,null,null,null,null,null,null,null,null,null,null,null,null,null,null,null,null,null,null,null,null,null,null,null,null,null,null,null,null,null,null,null,null,null,null,null,null,null,null,null,null,null,null,null,null,null,null,null,null,null,null,null,null,null,null,null,null,null,null,null,"हिंदी / अंग्रेज़ी"]
[{"$f":"IF(ISBLANK(B51),\"\",COUNTA($B$3:B51))","v":""}]
[{"$f":"IF(ISBLANK(B52),\"\",COUNTA($B$3:B52))","v":""},null,null,null,null,null,null,null,null,null,null,null,null,null,null,null,null,null,null,null,null,null,null,null,null,null,null,null,null,null,null,null,null,null,null,null,null,null,null,null,null,null,null,null,null,null,null,null,null,null,null,null,null,null,null,null,null,null,null,null,null,null,null,null,null,null,"वेब डिजाइनिंग  "]
[{"$f":"IF(ISBLANK(B53),\"\",COUNTA($B$3:B53))","v":""},null,null,null,null,null,null,null,null,null,null,null,null,null,null,null,null,null,null,null,null,null,null,null,null,null,null,null,null,null,null,null,null,null,null,null,null,null,null,null,null,null,null,null,null,null,null,null,null,null,null,null,null,null,null,null,null,null,null,null,null,null,null,null,null,null,"कंप्यूटर एप्लीकेशन  "]
[{"$f":"IF(ISBLANK(B54),\"\",COUNTA($B$3:B54))","v":""},null,null,null,null,null,null,null,null,null,null,null,null,null,null,null,null,null,null,null,null,null,null,null,null,null,null,null,null,null,null,null,null,null,null,null,null,null,null,null,null,null,null,null,null,null,null,null,null,null,null,null,null,null,null,null,null,null,null,null,null,null,null,null,null,null,"फोटोग्राफी  "]
[{"$f":"IF(ISBLANK(B55),\"\",COUNTA($B$3:B55))","v":""},null,null,null,null,null,null,null,null,null,null,null,null,null,null,null,null,null,null,null,null,null,null,null,null,null,null,null,null,null,null,null,null,null,null,null,null,null,null,null,null,null,null,null,null,null,null,null,null,null,null,null,null,null,null,null,null,null,null,null,null,null,null,null,null,null,"गेम डिजाइनिंग  "]
[{"$f":"IF(ISBLANK(B56),\"\",COUNTA($B$3:B56))","v":""},null,null,null,null,null,null,null,null,null,null,null,null,null,null,null,null,null,null,null,null,null,null,null,null,null,null,null,null,null,null,null,null,null,null,null,null,null,null,null,null,null,null,null,null,null,null,null,null,null,null,null,null,null,null,null,null,null,null,null,null,null,null,null,null,null,"इवेंट मैनेजमेंट  "]
[{"$f":"IF(ISBLANK(B57),\"\",COUNTA($B$3:B57))","v":""},null,null,null,null,null,null,null,null,null,null,null,null,null,null,null,null,null,null,null,null,null,null,null,null,null,null,null,null,null,null,null,null,null,null,null,null,null,null,null,null,null,null,null,null,null,null,null,null,null,null,null,null,null,null,null,null,null,null,null,null,null,null,null,null,null,"टेलीकम्युनिकेशन  "]
[{"$f":"IF(ISBLANK(B58),\"\",COUNTA($B$3:B58))","v":""},null,null,null,null,null,null,null,null,null,null,null,null,null,null,null,null,null,null,null,null,null,null,null,null,null,null,null,null,null,null,null,null,null,null,null,null,null,null,null,null,null,null,null,null,null,null,null,null,null,null,null,null,null,null,null,null,null,null,null,null,null,null,null,null,null,"फिजियोथेरेपी तकनीशियन  "]
[{"$f":"IF(ISBLANK(B59),\"\",COUNTA($B$3:B59))","v":""},null,null,null,null,null,null,null,null,null,null,null,null,null,null,null,null,null,null,null,null,null,null,null,null,null,null,null,null,null,null,null,null,null,null,null,null,null,null,null,null,null,null,null,null,null,null,null,null,null,null,null,null,null,null,null,null,null,null,null,null,null,null,null,null,null,"मेडिकल लैब टेक्नोलॉजी  "]
[{"$f":"IF(ISBLANK(B60),\"\",COUNTA($B$3:B60))","v":""},null,null,null,null,null,null,null,null,null,null,null,null,null,null,null,null,null,null,null,null,null,null,null,null,null,null,null,null,null,null,null,null,null,null,null,null,null,null,null,null,null,null,null,null,null,null,null,null,null,null,null,null,null,null,null,null,null,null,null,null,null,null,null,null,null,"मार्केटिंग एंड सेल्समैनशिप  "]
[{"$f":"IF(ISBLANK(B61),\"\",COUNTA($B$3:B61))","v":""},null,null,null,null,null,null,null,null,null,null,null,null,null,null,null,null,null,null,null,null,null,null,null,null,null,null,null,null,null,null,null,null,null,null,null,null,null,null,null,null,null,null,null,null,null,null,null,null,null,null,null,null,null,null,null,null,null,null,null,null,null,null,null,null,null,"एकाउंटिंग एंड टैक्सेशन  "]
[{"$f":"IF(ISBLANK(B62),\"\",COUNTA($B$3:B62))","v":""},null,null,null,null,null,null,null,null,null,null,null,null,null,null,null,null,null,null,null,null,null,null,null,null,null,null,null,null,null,null,null,null,null,null,null,null,null,null,null,null,null,null,null,null,null,null,null,null,null,null,null,null,null,null,null,null,null,null,null,null,null,null,null,null,null,"ऑफिस असिस्टेंटशिप  "]
[{"$f":"IF(ISBLANK(B63),\"\",COUNTA($B$3:B63))","v":""},null,null,null,null,null,null,null,null,null,null,null,null,null,null,null,null,null,null,null,null,null,null,null,null,null,null,null,null,null,null,null,null,null,null,null,null,null,null,null,null,null,null,null,null,null,null,null,null,null,null,null,null,null,null,null,null,null,null,null,null,null,null,null,null,null,"इंश्योरेंस एंड मार्केटिंग  "]
[{"$f":"IF(ISBLANK(B64),\"\",COUNTA($B$3:B64))","v":""},null,null,null,null,null,null,null,null,null,null,null,null,null,null,null,null,null,null,null,null,null,null,null,null,null,null,null,null,null,null,null,null,null,null,null,null,null,null,null,null,null,null,null,null,null,null,null,null,null,null,null,null,null,null,null,null,null,null,null,null,null,null,null,null,null,"बैंकिंग और फाइनेंशियल सर्विसेज  "]
[{"$f":"IF(ISBLANK(B65),\"\",COUNTA($B$3:B65))","v":""},null,null,null,null,null,null,null,null,null,null,null,null,null,null,null,null,null,null,null,null,null,null,null,null,null,null,null,null,null,null,null,null,null,null,null,null,null,null,null,null,null,null,null,null,null,null,null,null,null,null,null,null,null,null,null,null,null,null,null,null,null,null,null,null,null,"हॉस्पिटैलिटी मैनेजमेंट  "]
[{"$f":"IF(ISBLANK(B66),\"\",COUNTA($B$3:B66))","v":""},null,null,null,null,null,null,null,null,null,null,null,null,null,null,null,null,null,null,null,null,null,null,null,null,null,null,null,null,null,null,null,null,null,null,null,null,null,null,null,null,null,null,null,null,null,null,null,null,null,null,null,null,null,null,null,null,null,null,null,null,null,null,null,null,null,"खाद्य और पेय सेवाएं  "]
[{"$f":"IF(ISBLANK(B67),\"\",COUNTA($B$3:B67))","v":""},null,null,null,null,null,null,null,null,null,null,null,null,null,null,null,null,null,null,null,null,null,null,null,null,null,null,null,null,null,null,null,null,null,null,null,null,null,null,null,null,null,null,null,null,null,null,null,null,null,null,null,null,null,null,null,null,null,null,null,null,null,null,null,null,null,"बेकरी और मिष्ठान्न  "]
[{"$f":"IF(ISBLANK(B68),\"\",COUNTA($B$3:B68))","v":""},null,null,null,null,null,null,null,null,null,null,null,null,null,null,null,null,null,null,null,null,null,null,null,null,null,null,null,null,null,null,null,null,null,null,null,null,null,null,null,null,null,null,null,null,null,null,null,null,null,null,null,null,null,null,null,null,null,null,null,null,null,null,null,null,null,"हाउसकीपिंग  "]
[{"$f":"IF(ISBLANK(B69),\"\",COUNTA($B$3:B69))","v":""},null,null,null,null,null,null,null,null,null,null,null,null,null,null,null,null,null,null,null,null,null,null,null,null,null,null,null,null,null,null,null,null,null,null,null,null,null,null,null,null,null,null,null,null,null,null,null,null,null,null,null,null,null,null,null,null,null,null,null,null,null,null,null,null,null,"रेस्तरां और काउंटर सर्विस  "]
[{"$f":"IF(ISBLANK(B70),\"\",COUNTA($B$3:B70))","v":""},null,null,null,null,null,null,null,null,null,null,null,null,null,null,null,null,null,null,null,null,null,null,null,null,null,null,null,null,null,null,null,null,null,null,null,null,null,null,null,null,null,null,null,null,null,null,null,null,null,null,null,null,null,null,null,null,null,null,null,null,null,null,null,null,null,"ज्वेलरी डिजाइनिंग  "]
[{"$f":"IF(ISBLANK(B71),\"\",COUNTA($B$3:B71))","v":""},null,null,null,null,null,null,null,null,null,null,null,null,null,null,null,null,null,null,null,null,null,null,null,null,null,null,null,null,null,null,null,null,null,null,null,null,null,null,null,null,null,null,null,null,null,null,null,null,null,null,null,null,null,null,null,null,null,null,null,null,null,null,null,null,null,"बुटीक मैनेजमेंट  "]
[{"$f":"IF(ISBLANK(B72),\"\",COUNTA($B$3:B72))","v":""},null,null,null,null,null,null,null,null,null,null,null,null,null,null,null,null,null,null,null,null,null,null,null,null,null,null,null,null,null,null,null,null,null,null,null,null,null,null,null,null,null,null,null,null,null,null,null,null,null,null,null,null,null,null,null,null,null,null,null,null,null,null,null,null,null,"पब्लिक एडमिनिस्ट्रेशन  "]
[{"$f":"IF(ISBLANK(B73),\"\",COUNTA($B$3:B73))","v":""},null,null,null,null,null,null,null,null,null,null,null,null,null,null,null,null,null,null,null,null,null,null,null,null,null,null,null,null,null,null,null,null,null,null,null,null,null,null,null,null,null,null,null,null,null,null,null,null,null,null,null,null,null,null,null,null,null,null,null,null,null,null,null,null,null,"ऑडियो टेक्नीशियन  "]
[{"$f":"IF(ISBLANK(B74),\"\",COUNTA($B$3:B74))","v":""},null,null,null,null,null,null,null,null,null,null,null,null,null,null,null,null,null,null,null,null,null,null,null,null,null,null,null,null,null,null,null,null,null,null,null,null,null,null,null,null,null,null,null,null,null,null,null,null,null,null,null,null,null,null,null,null,null,null,null,null,null,null,null,null,null,"क्राफ्ट कोर्स इन फूड प्रोडक्शन  "]
[{"$f":"IF(ISBLANK(B75),\"\",COUNTA($B$3:B75))","v":""},null,null,null,null,null,null,null,null,null,null,null,null,null,null,null,null,null,null,null,null,null,null,null,null,null,null,null,null,null,null,null,null,null,null,null,null,null,null,null,null,null,null,null,null,null,null,null,null,null,null,null,null,null,null,null,null,null,null,null,null,null,null,null,null,null,"होटल रिसेप्शन और बुककीपिंग  "]
[{"$f":"IF(ISBLANK(B76),\"\",COUNTA($B$3:B76))","v":""},null,null,null,null,null,null,null,null,null,null,null,null,null,null,null,null,null,null,null,null,null,null,null,null,null,null,null,null,null,null,null,null,null,null,null,null,null,null,null,null,null,null,null,null,null,null,null,null,null,null,null,null,null,null,null,null,null,null,null,null,null,null,null,null,null,"सैनिटेशन और हेल्थ केयर  "]
[{"$f":"IF(ISBLANK(B77),\"\",COUNTA($B$3:B77))","v":""},null,null,null,null,null,null,null,null,null,null,null,null,null,null,null,null,null,null,null,null,null,null,null,null,null,null,null,null,null,null,null,null,null,null,null,null,null,null,null,null,null,null,null,null,null,null,null,null,null,null,null,null,null,null,null,null,null,null,null,null,null,null,null,null,null,"ब्यूटी कल्चर  "]
[{"$f":"IF(ISBLANK(B78),\"\",COUNTA($B$3:B78))","v":""},null,null,null,null,null,null,null,null,null,null,null,null,null,null,null,null,null,null,null,null,null,null,null,null,null,null,null,null,null,null,null,null,null,null,null,null,null,null,null,null,null,null,null,null,null,null,null,null,null,null,null,null,null,null,null,null,null,null,null,null,null,null,null,null,null,"हेयर डिजाइन  "]
[{"$f":"IF(ISBLANK(B79),\"\",COUNTA($B$3:B79))","v":""},null,null,null,null,null,null,null,null,null,null,null,null,null,null,null,null,null,null,null,null,null,null,null,null,null,null,null,null,null,null,null,null,null,null,null,null,null,null,null,null,null,null,null,null,null,null,null,null,null,null,null,null,null,null,null,null,null,null,null,null,null,null,null,null,null,"क्लिनिकल न्यूट्रिशन  "]
[{"$f":"IF(ISBLANK(B80),\"\",COUNTA($B$3:B80))","v":""},null,null,null,null,null,null,null,null,null,null,null,null,null,null,null,null,null,null,null,null,null,null,null,null,null,null,null,null,null,null,null,null,null,null,null,null,null,null,null,null,null,null,null,null,null,null,null,null,null,null,null,null,null,null,null,null,null,null,null,null,null,null,null,null,null,"कॉरपोरेट कम्युनिकेशन  "]
[{"$f":"IF(ISBLANK(B81),\"\",COUNTA($B$3:B81))","v":""},null,null,null,null,null,null,null,null,null,null,null,null,null,null,null,null,null,null,null,null,null,null,null,null,null,null,null,null,null,null,null,null,null,null,null,null,null,null,null,null,null,null,null,null,null,null,null,null,null,null,null,null,null,null,null,null,null,null,null,null,null,null,null,null,null,"फैशन डिजाइनिंग  "]
[{"$f":"IF(ISBLANK(B82),\"\",COUNTA($B$3:B82))","v":""},null,null,null,null,null,null,null,null,null,null,null,null,null,null,null,null,null,null,null,null,null,null,null,null,null,null,null,null,null,null,null,null,null,null,null,null,null,null,null,null,null,null,null,null,null,null,null,null,null,null,null,null,null,null,null,null,null,null,null,null,null,null,null,null,null,"डिजिटल मार्केटिंग  "]
[{"$f":"IF(ISBLANK(B83),\"\",COUNTA($B$3:B83))","v":""},null,null,null,null,null,null,null,null,null,null,null,null,null,null,null,null,null,null,null,null,null,null,null,null,null,null,null,null,null,null,null,null,null,null,null,null,null,null,null,null,null,null,null,null,null,null,null,null,null,null,null,null,null,null,null,null,null,null,null,null,null,null,null,null,null,"SEO कॉपीराइटिंग  "]
[{"$f":"IF(ISBLANK(B84),\"\",COUNTA($B$3:B84))","v":""},null,null,null,null,null,null,null,null,null,null,null,null,null,null,null,null,null,null,null,null,null,null,null,null,null,null,null,null,null,null,null,null,null,null,null,null,null,null,null,null,null,null,null,null,null,null,null,null,null,null,null,null,null,null,null,null,null,null,null,null,null,null,null,null,null,"एनिमेशन  "]
[{"$f":"IF(ISBLANK(B85),\"\",COUNTA($B$3:B85))","v":""},null,null,null,null,null,null,null,null,null,null,null,null,null,null,null,null,null,null,null,null,null,null,null,null,null,null,null,null,null,null,null,null,null,null,null,null,null,null,null,null,null,null,null,null,null,null,null,null,null,null,null,null,null,null,null,null,null,null,null,null,null,null,null,null,null,"फिटनेस ट्रेनिंग  "]
[{"$f":"IF(ISBLANK(B86),\"\",COUNTA($B$3:B86))","v":""},null,null,null,null,null,null,null,null,null,null,null,null,null,null,null,null,null,null,null,null,null,null,null,null,null,null,null,null,null,null,null,null,null,null,null,null,null,null,null,null,null,null,null,null,null,null,null,null,null,null,null,null,null,null,null,null,null,null,null,null,null,null,null,null,null,"विदेशी भाषाएँ (फ्रेंच, जर्मन, स्पेनिश आदि)"]
[{"$f":"IF(ISBLANK(B87),\"\",COUNTA($B$3:B87))","v":""}]
[{"$f":"IF(ISBLANK(B88),\"\",COUNTA($B$3:B88))","v":""}]
[{"$f":"IF(ISBLANK(B89),\"\",COUNTA($B$3:B89))","v":""}]
[{"$f":"IF(ISBLANK(B90),\"\",COUNTA($B$3:B90))","v":""}]
[{"$f":"IF(ISBLANK(B91),\"\",COUNTA($B$3:B91))","v":""}]
[{"$f":"IF(ISBLANK(B92),\"\",COUNTA($B$3:B92))","v":""}]
[{"$f":"IF(ISBLANK(B93),\"\",COUNTA($B$3:B93))","v":""}]
[{"$f":"IF(ISBLANK(B94),\"\",COUNTA($B$3:B94))","v":""}]
[{"$f":"IF(ISBLANK(B95),\"\",COUNTA($B$3:B95))","v":""}]
[{"$f":"IF(ISBLANK(B96),\"\",COUNTA($B$3:B96))","v":""}]
[{"$f":"IF(ISBLANK(B97),\"\",COUNTA($B$3:B97))","v":""}]
[{"$f":"IF(ISBLANK(B98),\"\",COUNTA($B$3:B98))","v":""}]
[{"$f":"IF(ISBLANK(B99),\"\",COUNTA($B$3:B99))","v":""}]
[{"$f":"IF(ISBLANK(B100),\"\",COUNTA($B$3:B100))","v":""}]
[{"$f":"IF(ISBLANK(B101),\"\",COUNTA($B$3:B101))","v":""}]
[{"$f":"IF(ISBLANK(B102),\"\",COUNTA($B$3:B102))","v":""}]
[{"$f":"IF(ISBLANK(B103),\"\",COUNTA($B$3:B103))","v":""}]
[{"$f":"IF(ISBLANK(B104),\"\",COUNTA($B$3:B104))","v":""}]
[{"$f":"IF(ISBLANK(B105),\"\",COUNTA($B$3:B105))","v":""}]
[{"$f":"IF(ISBLANK(B106),\"\",COUNTA($B$3:B106))","v":""}]
[{"$f":"IF(ISBLANK(B107),\"\",COUNTA($B$3:B107))","v":""}]
[{"$f":"IF(ISBLANK(B108),\"\",COUNTA($B$3:B108))","v":""}]
[{"$f":"IF(ISBLANK(B109),\"\",COUNTA($B$3:B109))","v":""}]
[{"$f":"IF(ISBLANK(B110),\"\",COUNTA($B$3:B110))","v":""}]
[{"$f":"IF(ISBLANK(B111),\"\",COUNTA($B$3:B111))","v":""}]
[{"$f":"IF(ISBLANK(B112),\"\",COUNTA($B$3:B112))","v":""}]
[{"$f":"IF(ISBLANK(B113),\"\",COUNTA($B$3:B113))","v":""}]
[{"$f":"IF(ISBLANK(B114),\"\",COUNTA($B$3:B114))","v":""}]
[{"$f":"IF(ISBLANK(B115),\"\",COUNTA($B$3:B115))","v":""}]
[{"$f":"IF(ISBLANK(B116),\"\",COUNTA($B$3:B116))","v":""}]
[{"$f":"IF(ISBLANK(B117),\"\",COUNTA($B$3:B117))","v":""}]
[{"$f":"IF(ISBLANK(B118),\"\",COUNTA($B$3:B118))","v":""}]
[{"$f":"IF(ISBLANK(B119),\"\",COUNTA($B$3:B119))","v":""}]
[{"$f":"IF(ISBLANK(B120),\"\",COUNTA($B$3:B120))","v":""}]
[{"$f":"IF(ISBLANK(B121),\"\",COUNTA($B$3:B121))","v":""}]
[{"$f":"IF(ISBLANK(B122),\"\",COUNTA($B$3:B122))","v":""}]
[{"$f":"IF(ISBLANK(B123),\"\",COUNTA($B$3:B123))","v":""}]
[{"$f":"IF(ISBLANK(B124),\"\",COUNTA($B$3:B124))","v":""}]
[{"$f":"IF(ISBLANK(B125),\"\",COUNTA($B$3:B125))","v":""}]
[{"$f":"IF(ISBLANK(B126),\"\",COUNTA($B$3:B126))","v":""}]
[{"$f":"IF(ISBLANK(B127),\"\",COUNTA($B$3:B127))","v":""}]
[{"$f":"IF(ISBLANK(B128),\"\",COUNTA($B$3:B128))","v":""}]
[{"$f":"IF(ISBLANK(B129),\"\",COUNTA($B$3:B129))","v":""}]
[{"$f":"IF(ISBLANK(B130),\"\",COUNTA($B$3:B130))","v":""}]
[{"$f":"IF(ISBLANK(B131),\"\",COUNTA($B$3:B131))","v":""}]
[{"$f":"IF(ISBLANK(B132),\"\",COUNTA($B$3:B132))","v":""}]
[{"$f":"IF(ISBLANK(B133),\"\",COUNTA($B$3:B133))","v":""}]
[{"$f":"IF(ISBLANK(B134),\"\",COUNTA($B$3:B134))","v":""}]
[{"$f":"IF(ISBLANK(B135),\"\",COUNTA($B$3:B135))","v":""}]
[{"$f":"IF(ISBLANK(B136),\"\",COUNTA($B$3:B136))","v":""}]
[{"$f":"IF(ISBLANK(B137),\"\",COUNTA($B$3:B137))","v":""}]
[{"$f":"IF(ISBLANK(B138),\"\",COUNTA($B$3:B138))","v":""}]
[{"$f":"IF(ISBLANK(B139),\"\",COUNTA($B$3:B139))","v":""}]
[{"$f":"IF(ISBLANK(B140),\"\",COUNTA($B$3:B140))","v":""}]
[{"$f":"IF(ISBLANK(B141),\"\",COUNTA($B$3:B141))","v":""}]
[{"$f":"IF(ISBLANK(B142),\"\",COUNTA($B$3:B142))","v":""}]
[{"$f":"IF(ISBLANK(B143),\"\",COUNTA($B$3:B143))","v":""}]
[{"$f":"IF(ISBLANK(B144),\"\",COUNTA($B$3:B144))","v":""}]
[{"$f":"IF(ISBLANK(B145),\"\",COUNTA($B$3:B145))","v":""}]
[{"$f":"IF(ISBLANK(B146),\"\",COUNTA($B$3:B146))","v":""}]
[{"$f":"IF(ISBLANK(B147),\"\",COUNTA($B$3:B147))","v":""}]
[{"$f":"IF(ISBLANK(B148),\"\",COUNTA($B$3:B148))","v":""}]
[{"$f":"IF(ISBLANK(B149),\"\",COUNTA($B$3:B149))","v":""}]
[{"$f":"IF(ISBLANK(B150),\"\",COUNTA($B$3:B150))","v":""}]
[{"$f":"IF(ISBLANK(B151),\"\",COUNTA($B$3:B151))","v":""}]
[{"$f":"IF(ISBLANK(B152),\"\",COUNTA($B$3:B152))","v":""}]
[{"$f":"IF(ISBLANK(B153),\"\",COUNTA($B$3:B153))","v":""}]
[{"$f":"IF(ISBLANK(B154),\"\",COUNTA($B$3:B154))","v":""}]
[{"$f":"IF(ISBLANK(B155),\"\",COUNTA($B$3:B155))","v":""}]
[{"$f":"IF(ISBLANK(B156),\"\",COUNTA($B$3:B156))","v":""}]
[{"$f":"IF(ISBLANK(B157),\"\",COUNTA($B$3:B157))","v":""}]
[{"$f":"IF(ISBLANK(B158),\"\",COUNTA($B$3:B158))","v":""}]
[{"$f":"IF(ISBLANK(B159),\"\",COUNTA($B$3:B159))","v":""}]
[{"$f":"IF(ISBLANK(B160),\"\",COUNTA($B$3:B160))","v":""}]
[{"$f":"IF(ISBLANK(B161),\"\",COUNTA($B$3:B161))","v":""}]
[{"$f":"IF(ISBLANK(B162),\"\",COUNTA($B$3:B162))","v":""}]
[{"$f":"IF(ISBLANK(B163),\"\",COUNTA($B$3:B163))","v":""}]
[{"$f":"IF(ISBLANK(B164),\"\",COUNTA($B$3:B164))","v":""}]
[{"$f":"IF(ISBLANK(B165),\"\",COUNTA($B$3:B165))","v":""}]
[{"$f":"IF(ISBLANK(B166),\"\",COUNTA($B$3:B166))","v":""}]
[{"$f":"IF(ISBLANK(B167),\"\",COUNTA($B$3:B167))","v":""}]
[{"$f":"IF(ISBLANK(B168),\"\",COUNTA($B$3:B168))","v":""}]
[{"$f":"IF(ISBLANK(B169),\"\",COUNTA($B$3:B169))","v":""}]
[{"$f":"IF(ISBLANK(B170),\"\",COUNTA($B$3:B170))","v":""}]
[{"$f":"IF(ISBLANK(B171),\"\",COUNTA($B$3:B171))","v":""}]
[{"$f":"IF(ISBLANK(B172),\"\",COUNTA($B$3:B172))","v":""}]
[{"$f":"IF(ISBLANK(B173),\"\",COUNTA($B$3:B173))","v":""}]
[{"$f":"IF(ISBLANK(B174),\"\",COUNTA($B$3:B174))","v":""}]
[{"$f":"IF(ISBLANK(B175),\"\",COUNTA($B$3:B175))","v":""}]
[{"$f":"IF(ISBLANK(B176),\"\",COUNTA($B$3:B176))","v":""}]
[{"$f":"IF(ISBLANK(B177),\"\",COUNTA($B$3:B177))","v":""}]
[{"$f":"IF(ISBLANK(B178),\"\",COUNTA($B$3:B178))","v":""}]
[{"$f":"IF(ISBLANK(B179),\"\",COUNTA($B$3:B179))","v":""}]
[{"$f":"IF(ISBLANK(B180),\"\",COUNTA($B$3:B180))","v":""}]
[{"$f":"IF(ISBLANK(B181),\"\",COUNTA($B$3:B181))","v":""}]
[{"$f":"IF(ISBLANK(B182),\"\",COUNTA($B$3:B182))","v":""}]
[{"$f":"IF(ISBLANK(B183),\"\",COUNTA($B$3:B183))","v":""}]
[{"$f":"IF(ISBLANK(B184),\"\",COUNTA($B$3:B184))","v":""}]
[{"$f":"IF(ISBLANK(B185),\"\",COUNTA($B$3:B185))","v":""}]
[{"$f":"IF(ISBLANK(B186),\"\",COUNTA($B$3:B186))","v":""}]
[{"$f":"IF(ISBLANK(B187),\"\",COUNTA($B$3:B187))","v":""}]
[{"$f":"IF(ISBLANK(B188),\"\",COUNTA($B$3:B188))","v":""}]
[{"$f":"IF(ISBLANK(B189),\"\",COUNTA($B$3:B189))","v":""}]
[{"$f":"IF(ISBLANK(B190),\"\",COUNTA($B$3:B190))","v":""}]
[{"$f":"IF(ISBLANK(B191),\"\",COUNTA($B$3:B191))","v":""}]
[{"$f":"IF(ISBLANK(B192),\"\",COUNTA($B$3:B192))","v":""}]
[{"$f":"IF(ISBLANK(B193),\"\",COUNTA($B$3:B193))","v":""}]
[{"$f":"IF(ISBLANK(B194),\"\",COUNTA($B$3:B194))","v":""}]
[{"$f":"IF(ISBLANK(B195),\"\",COUNTA($B$3:B195))","v":""}]
[{"$f":"IF(ISBLANK(B196),\"\",COUNTA($B$3:B196))","v":""}]
[{"$f":"IF(ISBLANK(B197),\"\",COUNTA($B$3:B197))","v":""}]
[{"$f":"IF(ISBLANK(B198),\"\",COUNTA($B$3:B198))","v":""}]
[{"$f":"IF(ISBLANK(B199),\"\",COUNTA($B$3:B199))","v":""}]
[{"$f":"IF(ISBLANK(B200),\"\",COUNTA($B$3:B200))","v":""}]
[{"$f":"IF(ISBLANK(B201),\"\",COUNTA($B$3:B201))","v":""}]
[{"$f":"IF(ISBLANK(B202),\"\",COUNTA($B$3:B202))","v":""}]
[{"$f":"IF(ISBLANK(B203),\"\",COUNTA($B$3:B203))","v":""}]
[{"$f":"IF(ISBLANK(B204),\"\",COUNTA($B$3:B204))","v":""}]
[{"$f":"IF(ISBLANK(B205),\"\",COUNTA($B$3:B205))","v":""}]
[{"$f":"IF(ISBLANK(B206),\"\",COUNTA($B$3:B206))","v":""}]
[{"$f":"IF(ISBLANK(B207),\"\",COUNTA($B$3:B207))","v":""}]
[{"$f":"IF(ISBLANK(B208),\"\",COUNTA($B$3:B208))","v":""}]
[{"$f":"IF(ISBLANK(B209),\"\",COUNTA($B$3:B209))","v":""}]
[{"$f":"IF(ISBLANK(B210),\"\",COUNTA($B$3:B210))","v":""}]
[{"$f":"IF(ISBLANK(B211),\"\",COUNTA($B$3:B211))","v":""}]
[{"$f":"IF(ISBLANK(B212),\"\",COUNTA($B$3:B212))","v":""}]
[{"$f":"IF(ISBLANK(B213),\"\",COUNTA($B$3:B213))","v":""}]
[{"$f":"IF(ISBLANK(B214),\"\",COUNTA($B$3:B214))","v":""}]
[{"$f":"IF(ISBLANK(B215),\"\",COUNTA($B$3:B215))","v":""}]
[{"$f":"IF(ISBLANK(B216),\"\",COUNTA($B$3:B216))","v":""}]
[{"$f":"IF(ISBLANK(B217),\"\",COUNTA($B$3:B217))","v":""}]
[{"$f":"IF(ISBLANK(B218),\"\",COUNTA($B$3:B218))","v":""}]
[{"$f":"IF(ISBLANK(B219),\"\",COUNTA($B$3:B219))","v":""}]
[{"$f":"IF(ISBLANK(B220),\"\",COUNTA($B$3:B220))","v":""}]
[{"$f":"IF(ISBLANK(B221),\"\",COUNTA($B$3:B221))","v":""}]
[{"$f":"IF(ISBLANK(B222),\"\",COUNTA($B$3:B222))","v":""}]
[{"$f":"IF(ISBLANK(B223),\"\",COUNTA($B$3:B223))","v":""}]
[{"$f":"IF(ISBLANK(B224),\"\",COUNTA($B$3:B224))","v":""}]
[{"$f":"IF(ISBLANK(B225),\"\",COUNTA($B$3:B225))","v":""}]
[{"$f":"IF(ISBLANK(B226),\"\",COUNTA($B$3:B226))","v":""}]
[{"$f":"IF(ISBLANK(B227),\"\",COUNTA($B$3:B227))","v":""}]
[{"$f":"IF(ISBLANK(B228),\"\",COUNTA($B$3:B228))","v":""}]
[{"$f":"IF(ISBLANK(B229),\"\",COUNTA($B$3:B229))","v":""}]
[{"$f":"IF(ISBLANK(B230),\"\",COUNTA($B$3:B230))","v":""}]
[{"$f":"IF(ISBLANK(B231),\"\",COUNTA($B$3:B231))","v":""}]
[{"$f":"IF(ISBLANK(B232),\"\",COUNTA($B$3:B232))","v":""}]
[{"$f":"IF(ISBLANK(B233),\"\",COUNTA($B$3:B233))","v":""}]
[{"$f":"IF(ISBLANK(B234),\"\",COUNTA($B$3:B234))","v":""}]
[{"$f":"IF(ISBLANK(B235),\"\",COUNTA($B$3:B235))","v":""}]
[{"$f":"IF(ISBLANK(B236),\"\",COUNTA($B$3:B236))","v":""}]
[{"$f":"IF(ISBLANK(B237),\"\",COUNTA($B$3:B237))","v":""}]
[{"$f":"IF(ISBLANK(B238),\"\",COUNTA($B$3:B238))","v":""}]
[{"$f":"IF(ISBLANK(B239),\"\",COUNTA($B$3:B239))","v":""}]
[{"$f":"IF(ISBLANK(B240),\"\",COUNTA($B$3:B240))","v":""}]
[{"$f":"IF(ISBLANK(B241),\"\",COUNTA($B$3:B241))","v":""}]
[{"$f":"IF(ISBLANK(B242),\"\",COUNTA($B$3:B242))","v":""}]
[{"$f":"IF(ISBLANK(B243),\"\",COUNTA($B$3:B243))","v":""}]
[{"$f":"IF(ISBLANK(B244),\"\",COUNTA($B$3:B244))","v":""}]
[{"$f":"IF(ISBLANK(B245),\"\",COUNTA($B$3:B245))","v":""}]
[{"$f":"IF(ISBLANK(B246),\"\",COUNTA($B$3:B246))","v":""}]
[{"$f":"IF(ISBLANK(B247),\"\",COUNTA($B$3:B247))","v":""}]
[{"$f":"IF(ISBLANK(B248),\"\",COUNTA($B$3:B248))","v":""}]
[{"$f":"IF(ISBLANK(B249),\"\",COUNTA($B$3:B249))","v":""}]
[{"$f":"IF(ISBLANK(B250),\"\",COUNTA($B$3:B250))","v":""}]
[{"$f":"IF(ISBLANK(B251),\"\",COUNTA($B$3:B251))","v":""}]
[{"$f":"IF(ISBLANK(B252),\"\",COUNTA($B$3:B252))","v":""}]
[{"$f":"IF(ISBLANK(B253),\"\",COUNTA($B$3:B253))","v":""}]
[{"$f":"IF(ISBLANK(B254),\"\",COUNTA($B$3:B254))","v":""}]
[{"$f":"IF(ISBLANK(B255),\"\",COUNTA($B$3:B255))","v":""}]
[{"$f":"IF(ISBLANK(B256),\"\",COUNTA($B$3:B256))","v":""}]
[{"$f":"IF(ISBLANK(B257),\"\",COUNTA($B$3:B257))","v":""}]
[{"$f":"IF(ISBLANK(B258),\"\",COUNTA($B$3:B258))","v":""}]
[{"$f":"IF(ISBLANK(B259),\"\",COUNTA($B$3:B259))","v":""}]
[{"$f":"IF(ISBLANK(B260),\"\",COUNTA($B$3:B260))","v":""}]
[{"$f":"IF(ISBLANK(B261),\"\",COUNTA($B$3:B261))","v":""}]
[{"$f":"IF(ISBLANK(B262),\"\",COUNTA($B$3:B262))","v":""}]
[{"$f":"IF(ISBLANK(B263),\"\",COUNTA($B$3:B263))","v":""}]
[{"$f":"IF(ISBLANK(B264),\"\",COUNTA($B$3:B264))","v":""}]
[{"$f":"IF(ISBLANK(B265),\"\",COUNTA($B$3:B265))","v":""}]
[{"$f":"IF(ISBLANK(B266),\"\",COUNTA($B$3:B266))","v":""}]
[{"$f":"IF(ISBLANK(B267),\"\",COUNTA($B$3:B267))","v":""}]
[{"$f":"IF(ISBLANK(B268),\"\",COUNTA($B$3:B268))","v":""}]
[{"$f":"IF(ISBLANK(B269),\"\",COUNTA($B$3:B269))","v":""}]
[{"$f":"IF(ISBLANK(B270),\"\",COUNTA($B$3:B270))","v":""}]
[{"$f":"IF(ISBLANK(B271),\"\",COUNTA($B$3:B271))","v":""}]
[{"$f":"IF(ISBLANK(B272),\"\",COUNTA($B$3:B272))","v":""}]
[{"$f":"IF(ISBLANK(B273),\"\",COUNTA($B$3:B273))","v":""}]
[{"$f":"IF(ISBLANK(B274),\"\",COUNTA($B$3:B274))","v":""}]
[{"$f":"IF(ISBLANK(B275),\"\",COUNTA($B$3:B275))","v":""}]
[{"$f":"IF(ISBLANK(B276),\"\",COUNTA($B$3:B276))","v":""}]
[{"$f":"IF(ISBLANK(B277),\"\",COUNTA($B$3:B277))","v":""}]
[{"$f":"IF(ISBLANK(B278),\"\",COUNTA($B$3:B278))","v":""}]
[{"$f":"IF(ISBLANK(B279),\"\",COUNTA($B$3:B279))","v":""}]
[{"$f":"IF(ISBLANK(B280),\"\",COUNTA($B$3:B280))","v":""}]
[{"$f":"IF(ISBLANK(B281),\"\",COUNTA($B$3:B281))","v":""}]
[{"$f":"IF(ISBLANK(B282),\"\",COUNTA($B$3:B282))","v":""}]
[{"$f":"IF(ISBLANK(B283),\"\",COUNTA($B$3:B283))","v":""}]
[{"$f":"IF(ISBLANK(B284),\"\",COUNTA($B$3:B284))","v":""}]
[{"$f":"IF(ISBLANK(B285),\"\",COUNTA($B$3:B285))","v":""}]
[{"$f":"IF(ISBLANK(B286),\"\",COUNTA($B$3:B286))","v":""}]
[{"$f":"IF(ISBLANK(B287),\"\",COUNTA($B$3:B287))","v":""}]
[{"$f":"IF(ISBLANK(B288),\"\",COUNTA($B$3:B288))","v":""}]
[{"$f":"IF(ISBLANK(B289),\"\",COUNTA($B$3:B289))","v":""}]
[{"$f":"IF(ISBLANK(B290),\"\",COUNTA($B$3:B290))","v":""}]
[{"$f":"IF(ISBLANK(B291),\"\",COUNTA($B$3:B291))","v":""}]
[{"$f":"IF(ISBLANK(B292),\"\",COUNTA($B$3:B292))","v":""}]
[{"$f":"IF(ISBLANK(B293),\"\",COUNTA($B$3:B293))","v":""}]
[{"$f":"IF(ISBLANK(B294),\"\",COUNTA($B$3:B294))","v":""}]
[{"$f":"IF(ISBLANK(B295),\"\",COUNTA($B$3:B295))","v":""}]
[{"$f":"IF(ISBLANK(B296),\"\",COUNTA($B$3:B296))","v":""}]
[{"$f":"IF(ISBLANK(B297),\"\",COUNTA($B$3:B297))","v":""}]
[{"$f":"IF(ISBLANK(B298),\"\",COUNTA($B$3:B298))","v":""}]
[{"$f":"IF(ISBLANK(B299),\"\",COUNTA($B$3:B299))","v":""}]
[{"$f":"IF(ISBLANK(B300),\"\",COUNTA($B$3:B300))","v":""}]
[{"$f":"IF(ISBLANK(B301),\"\",COUNTA($B$3:B301))","v":""}]
[{"$f":"IF(ISBLANK(B302),\"\",COUNTA($B$3:B302))","v":""}]
[{"$f":"IF(ISBLANK(B303),\"\",COUNTA($B$3:B303))","v":""}]
[{"$f":"IF(ISBLANK(B304),\"\",COUNTA($B$3:B304))","v":""}]
[{"$f":"IF(ISBLANK(B305),\"\",COUNTA($B$3:B305))","v":""}]
[{"$f":"IF(ISBLANK(B306),\"\",COUNTA($B$3:B306))","v":""}]
[{"$f":"IF(ISBLANK(B307),\"\",COUNTA($B$3:B307))","v":""}]
[{"$f":"IF(ISBLANK(B308),\"\",COUNTA($B$3:B308))","v":""}]
[{"$f":"IF(ISBLANK(B309),\"\",COUNTA($B$3:B309))","v":""}]
[{"$f":"IF(ISBLANK(B310),\"\",COUNTA($B$3:B310))","v":""}]
[{"$f":"IF(ISBLANK(B311),\"\",COUNTA($B$3:B311))","v":""}]
[{"$f":"IF(ISBLANK(B312),\"\",COUNTA($B$3:B312))","v":""}]
[{"$f":"IF(ISBLANK(B313),\"\",COUNTA($B$3:B313))","v":""}]
[{"$f":"IF(ISBLANK(B314),\"\",COUNTA($B$3:B314))","v":""}]
[{"$f":"IF(ISBLANK(B315),\"\",COUNTA($B$3:B315))","v":""}]
[{"$f":"IF(ISBLANK(B316),\"\",COUNTA($B$3:B316))","v":""}]
[{"$f":"IF(ISBLANK(B317),\"\",COUNTA($B$3:B317))","v":""}]
[{"$f":"IF(ISBLANK(B318),\"\",COUNTA($B$3:B318))","v":""}]
[{"$f":"IF(ISBLANK(B319),\"\",COUNTA($B$3:B319))","v":""}]
[{"$f":"IF(ISBLANK(B320),\"\",COUNTA($B$3:B320))","v":""}]
[{"$f":"IF(ISBLANK(B321),\"\",COUNTA($B$3:B321))","v":""}]
[{"$f":"IF(ISBLANK(B322),\"\",COUNTA($B$3:B322))","v":""}]
[{"$f":"IF(ISBLANK(B323),\"\",COUNTA($B$3:B323))","v":""}]
[{"$f":"IF(ISBLANK(B324),\"\",COUNTA($B$3:B324))","v":""}]
[{"$f":"IF(ISBLANK(B325),\"\",COUNTA($B$3:B325))","v":""}]
[{"$f":"IF(ISBLANK(B326),\"\",COUNTA($B$3:B326))","v":""}]
[{"$f":"IF(ISBLANK(B327),\"\",COUNTA($B$3:B327))","v":""}]
[{"$f":"IF(ISBLANK(B328),\"\",COUNTA($B$3:B328))","v":""}]
[{"$f":"IF(ISBLANK(B329),\"\",COUNTA($B$3:B329))","v":""}]
[{"$f":"IF(ISBLANK(B330),\"\",COUNTA($B$3:B330))","v":""}]
[{"$f":"IF(ISBLANK(B331),\"\",COUNTA($B$3:B331))","v":""}]
[{"$f":"IF(ISBLANK(B332),\"\",COUNTA($B$3:B332))","v":""}]
[{"$f":"IF(ISBLANK(B333),\"\",COUNTA($B$3:B333))","v":""}]
[{"$f":"IF(ISBLANK(B334),\"\",COUNTA($B$3:B334))","v":""}]
[{"$f":"IF(ISBLANK(B335),\"\",COUNTA($B$3:B335))","v":""}]
[{"$f":"IF(ISBLANK(B336),\"\",COUNTA($B$3:B336))","v":""}]
[{"$f":"IF(ISBLANK(B337),\"\",COUNTA($B$3:B337))","v":""}]
[{"$f":"IF(ISBLANK(B338),\"\",COUNTA($B$3:B338))","v":""}]
[{"$f":"IF(ISBLANK(B339),\"\",COUNTA($B$3:B339))","v":""}]
[{"$f":"IF(ISBLANK(B340),\"\",COUNTA($B$3:B340))","v":""}]
[{"$f":"IF(ISBLANK(B341),\"\",COUNTA($B$3:B341))","v":""}]
[{"$f":"IF(ISBLANK(B342),\"\",COUNTA($B$3:B342))","v":""}]
[{"$f":"IF(ISBLANK(B343),\"\",COUNTA($B$3:B343))","v":""}]
[{"$f":"IF(ISBLANK(B344),\"\",COUNTA($B$3:B344))","v":""}]
[{"$f":"IF(ISBLANK(B345),\"\",COUNTA($B$3:B345))","v":""}]
[{"$f":"IF(ISBLANK(B346),\"\",COUNTA($B$3:B346))","v":""}]
[{"$f":"IF(ISBLANK(B347),\"\",COUNTA($B$3:B347))","v":""}]
[{"$f":"IF(ISBLANK(B348),\"\",COUNTA($B$3:B348))","v":""}]
[{"$f":"IF(ISBLANK(B349),\"\",COUNTA($B$3:B349))","v":""}]

{"sheet":"PAGE1","index":2,"n_rows":44,"n_cols":26,"rows_kept":44,"cut":false,"hidden":false,"merged":[[40,7,40,8],[41,7,41,8],[38,2,38,3],[38,4,38,5],[39,2,39,3],[40,2,40,3],[41,2,41,3],[39,4,39,5],[40,4,40,5],[41,4,41,5],[39,7,39,8],[38,7,38,8],[2,2,2,4],[5,0,5,2],[12,6,12,7],[12,8,12,9],[6,2,6,6],[10,3,10,4],[10,8,10,9],[3,0,3,1],[5,3,5,7],[16,0,16,3],[18,0,18,2],[20,4,20,6],[0,0,0,2],[2,0,2,1],[3,2,3,6],[14,0,14,5],[14,6,14,10],[4,2,4,4],[20,0,20,3],[17,0,17,5],[19,0,19,4],[19,5,19,8],[13,0,13,3],[13,6,13,8],[11,0,11,4],[36,8,36,10],[36,0,36,3],[36,5,36,7],[37,0,37,4],[12,0,12,3],[12,4,12,5],[32,0,32,2],[32,4,32,5],[34,2,34,10],[35,0,35,3],[35,4,35,6],[35,8,35,9],[34,0,34,1],[30,3,30,4],[15,0,15,3],[15,5,15,8],[31,0,31,3],[33,0,33,2],[30,5,30,8],[30,0,30,2],[28,0,28,1],[28,7,28,8],[28,2,28,3],[28,9,28,10],[29,0,29,2],[29,3,29,4],[29,5,29,6],[29,7,29,8],[27,0,27,1],[27,3,27,10],[23,3,23,5],[23,0,23,2],[23,6,23,8],[23,9,23,10],[24,3,24,5],[24,6,24,8],[24,0,24,2],[26,3,26,4],[26,0,26,2],[26,5,26,6],[25,0,25,4],[25,5,25,9],[26,7,26,9],[4,15,4,17],[0,12,0,14],[21,2,21,3],[21,5,21,6],[22,0,22,3],[22,4,22,5],[10,5,10,7],[1,12,1,14],[2,12,2,14],[4,7,4,8],[13,4,13,5],[13,9,13,10],[1,4,1,6],[1,7,1,8],[0,3,0,10],[4,0,4,1]]}
["विद्यालय का नाम",null,null,{"$f":"STUDENT_DATA!A1","v":"राजकीय उच्च माध्यमिक विद्यालय "},null,null,null,null,null,null,null,null,"फॉर्म भरने के लिए नीचे क्रम  संख्या लिखे",null,null,null,null,null,null,null,null,null,null,null,"OBC",{"$f":"INDEX(STUDENT_DATA!K:K, MATCH(M3, STUDENT_DATA!A:A, 0))=\"OBC\"","v":{"$error":"#N/A"}}]
[null,null,null,null,"प्रवेश आवेदन पत्र ",null,null,{"$f":"STUDENT_DATA!I1","v":"2025-26"},null,null,null,null,"SR NO (क्र. स.)",null,null,null,null,null,null,null,null,null,null,null,"SC",{"$f":"INDEX(STUDENT_DATA!K:K, MATCH(M3, STUDENT_DATA!A:A, 0))=\"SC\"","v":{"$error":"#N/A"}}]
["प्रवेश दिनांक",null,{"$f":"IFERROR(INDEX(STUDENT_DATA!D:D, MATCH(PAGE1!M3, STUDENT_DATA!A:A, 0)), \"\")","v":""},null,null,null,null,null,null,"प्रवेशांक",{"$f":"IFERROR(INDEX(STUDENT_DATA!E:E, MATCH(PAGE1!M3, STUDENT_DATA!A:A, 0)), \"\")","v":""},null,2,null,null,null,null,null,null,null,null,null,null,null,"ST",{"$f":"INDEX(STUDENT_DATA!K:K, MATCH(M3, STUDENT_DATA!A:A, 0))=\"ST\"","v":{"$error":"#N/A"}}]
["1.विद्यार्थी का नाम",null,{"$f":"IFERROR(INDEX(STUDENT_DATA!B:B, MATCH(PAGE1!M3, STUDENT_DATA!A:A, 0)), \"\")","v":""},null,null,null,null,null,null,null,null,null,null,null,null,null,null,null,null,null,null,null,null,null,"GEN",{"$f":"INDEX(STUDENT_DATA!K:K, MATCH(M3, STUDENT_DATA!A:A, 0))=\"GEN\"","v":{"$error":"#N/A"}}]
["2.जन्म तिथि",null,{"$f":"IFERROR(INDEX(STUDENT_DATA!C:C, MATCH(PAGE1!M3, STUDENT_DATA!A:A, 0)), \"\")","v":""},null,null,null,"3.धर्म",{"$f":"IFERROR(INDEX(STUDENT_DATA!F:F, MATCH(PAGE1!M3, STUDENT_DATA!A:A, 0)), \"\")","v":""},null,null,null,null,null,null,null,"shivraj meghwanshi",null,null,null,null,null,null,null,null,"SBC",{"$f":"INDEX(STUDENT_DATA!K:K, MATCH(M3, STUDENT_DATA!A:A, 0))=\"SBC\"","v":{"$error":"#N/A"}}]
["4.पिता/अभिभावक का नाम",null,null,{"$f":"IFERROR(INDEX(STUDENT_DATA!G:G, MATCH(PAGE1!M3, STUDENT_DATA!A:A, 0)), \"\")","v":""}]
["5.माता का नाम",null,{"$f":"IFERROR(INDEX(STUDENT_DATA!H:H, MATCH(PAGE1!M3, STUDENT_DATA!A:A, 0)), \"\")","v":""}]
["6.वर्ग",null,"GEN","OBC","SBC","SC","ST"]
["7.लिंग",null,"महिला ",null,"पुरुष ",null,null,null,null,null,null,null,null,null,"PRINT",null,null,null,null,null,null,null,null,null,"F",{"$f":"INDEX(STUDENT_DATA!L:L, MATCH(M3, STUDENT_DATA!A:A, 0))=\"महिला\"","v":{"$error":"#N/A"}}]
["8.कक्षा जिसमें प्रवेश चाहियेः",null,null,{"$f":"IFERROR(INDEX(STUDENT_DATA!I:I, MATCH(PAGE1!M3, STUDENT_DATA!A:A, 0)), \"\")","v":""},null,null,"9.सेक्शन",{"$f":"IFERROR(INDEX(STUDENT_DATA!J:J, MATCH(PAGE1!M3, STUDENT_DATA!A:A, 0)), \"\")","v":""},null,null,null,null,null,null,null,null,null,null,null,null,null,null,null,null,"M",{"$f":"INDEX(STUDENT_DATA!L:L, MATCH(M3, STUDENT_DATA!A:A, 0))=\"पुरुष\"","v":{"$error":"#N/A"}}]
["10.प्रवेश का प्रकारः",null,null,"स्थानांतरण",null,"नव प्रवेश",null,null,"पुनः प्रवेश",null,null,null,null,null,null,null,null,null,null,null,null,null,null,null,"TR",{"$f":"INDEX(STUDENT_DATA!M:M, MATCH(M3, STUDENT_DATA!A:A, 0))=\"स्थानंतरण\"","v":{"$error":"#N/A"}}]
["11.संकाय (सिर्फ कक्षा 11 और 12 के लिए):-",null,null,null,null,"कला वर्ग","वाणिज्य वर्ग",null,"विज्ञान वर्ग",null,null,null,null,null,null,null,null,null,null,null,null,null,null,null,"NEW",{"$f":"INDEX(STUDENT_DATA!M:M, MATCH(M3, STUDENT_DATA!A:A, 0))=\"नव प्रवेश\"","v":{"$error":"#N/A"}}]
["12.वैकल्पिक विषय (11 / 12वीं)",null,null,null,{"$f":"IFERROR(INDEX(STUDENT_DATA!O:O, MATCH(PAGE1!M3, STUDENT_DATA!A:A, 0)), \"\")","v":""},null,{"$f":"IFERROR(INDEX(STUDENT_DATA!P:P, MATCH(PAGE1!M3, STUDENT_DATA!A:A, 0)), \"\")","v":""},null,{"$f":"IFERROR(INDEX(STUDENT_DATA!Q:Q, MATCH(PAGE1!M3, STUDENT_DATA!A:A, 0)), \"\")","v":""},null,{"$f":"IFERROR(INDEX(STUDENT_DATA!R:R, MATCH(PAGE1!M3, STUDENT_DATA!A:A, 0)), \"\")","v":""},null,null,null,null,null,null,null,null,null,null,null,null,null,"PUNH",{"$f":"INDEX(STUDENT_DATA!M:M, MATCH(M3, STUDENT_DATA!A:A, 0))=\"पुनः प्रवेश\"","v":{"$error":"#N/A"}}]
["13.तृतीय भाषा (कक्षा 6-10 तक):-",null,null,null,{"$f":"IFERROR(INDEX(STUDENT_DATA!S:S, MATCH(PAGE1!M3, STUDENT_DATA!A:A, 0)), \"\")","v":""},null,"14. वोकेशनल ट्रेड (9/10वीं) :",null,null,{"$f":"IFERROR(INDEX(STUDENT_DATA!T:T, MATCH(PAGE1!M3, STUDENT_DATA!A:A, 0)), \"\")","v":""},null,null,null,null,null,null,null,null,null,null,null,null,null,null,"ART",{"$f":"INDEX(STUDENT_DATA!N:N, MATCH(M3, STUDENT_DATA!A:A, 0))=\"कला\"","v":{"$error":"#N/A"}}]
["15.पूर्व विद्यालय का नाम जहां विद्यार्थी अध्ययनरत रहा है",null,null,null,null,null,{"$f":"IFERROR(INDEX(STUDENT_DATA!U:U, MATCH(PAGE1!M3, STUDENT_DATA!A:A, 0)), \"\")","v":""},null,null,null,null,null,null,null,null,null,null,null,null,null,null,null,null,null,"COM",{"$f":"INDEX(STUDENT_DATA!N:N, MATCH(M3, STUDENT_DATA!A:A, 0))=\"वाणिज्य\"","v":{"$error":"#N/A"}}]
["16.पूर्व विद्यालय का S. R. नम्बरः-",null,null,null,{"$f":"IFERROR(INDEX(STUDENT_DATA!V:V, MATCH(PAGE1!M3, STUDENT_DATA!A:A, 0)), \"\")","v":""},"एवं शाला दर्पण कोड (केवल सरकारी हेतु) :",null,null,null,null,null,null,null,null,null,null,null,null,null,null,null,null,null,null,"SCI",{"$f":"INDEX(STUDENT_DATA!N:N, MATCH(M3, STUDENT_DATA!A:A, 0))=\"विज्ञान\"","v":{"$error":"#N/A"}}]
["17.पूर्व वि‌द्यालय की अंतिम कक्षा:- ",null,null,null,{"$f":"IFERROR(INDEX(STUDENT_DATA!W:W, MATCH(PAGE1!M3, STUDENT_DATA!A:A, 0)), \"\")","v":""},"18.अंतिम कक्षा का परिणामः",null,null,"उत्तीर्ण","अनुतीर्ण","अध्ययनरत",null,null,null,null,null,null,null,null,null,null,null,null,null,"FAIL",{"$f":"INDEX(STUDENT_DATA!X:X, MATCH(M3, STUDENT_DATA!A:A, 0))=\"अनुतीर्ण\"","v":{"$error":"#N/A"}}]
["18.क्या विद्यार्थी विद्यालय में कार्यरत कार्मिक की संतान हैं",null,null,null,null,null,"हाँ ","नहीं",null,null,null,null,null,null,null,null,null,null,null,null,null,null,null,null,"PASS",{"$f":"INDEX(STUDENT_DATA!X:X, MATCH(M3, STUDENT_DATA!A:A, 0))=\"उत्तीर्ण\"","v":{"$error":"#N/A"}}]
["19.बी.पी.एल. स्थितिः- ",null,null,"नहीं है । ",null,"राज्य बी०पी०एल०",null,null,"केंद बी०पी०एल०",null,null,null,null,null,null,null,null,null,null,null,null,null,null,null,"ADHY",{"$f":"INDEX(STUDENT_DATA!X:X, MATCH(M3, STUDENT_DATA!A:A, 0))=\"अध्ययनरत\"","v":{"$error":"#N/A"}}]
["20.अगर हाँ तो बी.पी.एल. प्रमाण पत्र क्रमांक:-",null,null,null,null,null,null,null,null,"व दिनांक:-"]
["21.विद्यार्थी का आधार (12 अंक):-",null,null,null,{"$f":"IFERROR(INDEX(STUDENT_DATA!Y:Y, MATCH(PAGE1!M3, STUDENT_DATA!A:A, 0)), \"\")","v":""},null,null,"(आधार नंबर नहीं हैं तो नीचे आधार नामांकन सूचना भरे)"]
["नामांकन क्रमांकः-",null,null,null,"दिनांक ",null,null,null,"समय"]
["22.परिवार जन आधार ID No. :-",null,null,null,{"$f":"IFERROR(INDEX(STUDENT_DATA!Z:Z, MATCH(PAGE1!M3, STUDENT_DATA!A:A, 0)), \"\")","v":""},null,"जनाधार नम्बर नहीं हैं तो नीचे जनाधार रजिस्ट्रेशन नम्बर भरें)"]
["जनाधार रजिस्ट्रेशन नम्बरः-",null,null,null,null,null,"Student जनाधार ID"]
["23.परिवार राशन कार्ड नम्बर :-",null,null,{"$f":"IFERROR(INDEX(STUDENT_DATA!AA:AA, MATCH(PAGE1!M3, STUDENT_DATA!A:A, 0)), \"\")","v":""},null,null," 24.क्या विद्यार्थी होस्टल में रहता है",null,null,"हाँ","नहीं "]
["25. उस बैंक का नाम जिसमें विद्यार्थी का खाता है:-"]
["26.बैंक खाता संख्या ",null,null,null,null,"27.बैंक IFSC कोड "]
["28.CWSN स्थितिः",null,"हाँ","नहीं (CWSN-Children with special needs- विशेष आवश्यकताओं वाले बच्चे)",null,null,null,null,null,null,null,null,null,null,null,null,null,null,null,null,null,null,null,null,null,{"$f":"INDEX(STUDENT_DATA!AD:AD, MATCH(M3, STUDENT_DATA!A:A, 0))=\"हाँ\"","v":{"$error":"#N/A"}}]
["अगर हाँ तो प्रकारः-",null,"दृष्टि बाधित ",null,"अल्पदृष्टि",null,"मूक बधिर","अस्थि विकलांगता",null,"स्वलीनता (ऑटिज्म",null,null,null,null,null,null,null,null,null,null,null,null,null,null,null,{"$f":"INDEX(STUDENT_DATA!AD:AD, MATCH(M3, STUDENT_DATA!A:A, 0))=\"नहीं\"","v":{"$error":"#N/A"}}]
["मानसिक विमन्दाता",null,null,"मानसिक रुग्णता",null,"बहु निःशक्तता",null,"अधिगम अक्षमता",null,"सेरबल पल्सी","अन्य"]
["29.मूल निवास राज्य का नामः-",null,null,{"$f":"IFERROR(INDEX(STUDENT_DATA!AF:AF, MATCH(PAGE1!M3, STUDENT_DATA!A:A, 0)), \"\")","v":""},null,"30. राजस्थान में कितने वर्षों से रह रहा है:-",null,null,null,{"$f":"IFERROR(INDEX(STUDENT_DATA!AG:AG, MATCH(PAGE1!M3, STUDENT_DATA!A:A, 0)), \"\")","v":""}]
["31.विद्यार्थी का वजन (कि. ग्रा. में)",null,null,null,null,"लबाई (से. मी. में):-",null,null,"ब्लड ग्रुपः-"]
["32.सहशैक्षणिक गतिविधियां-",null,null,"कोई नहीं","एन.सी.सी",null,"स्काउट","गाइड","एन.एस.एस.","कब","बुलबुल",null,null,null,null,null,null,null,null,null,null,null,null,null,"अल्पदृष्टि",{"$f":"INDEX(STUDENT_DATA!AE:AE, MATCH(M3, STUDENT_DATA!A:A, 0))=\"अल्पदृष्टि\"","v":{"$error":"#N/A"}}]
["33.खेल में प्रमाणपत्रः-",null,null,null,"राष्ट्र",null,"राज्य",null,"जिला",null,null,null,null,null,null,null,null,null,null,null,null,null,null,null,"दृष्टि बाधित ",{"$f":"INDEX(STUDENT_DATA!AE:AE, MATCH(M3, STUDENT_DATA!A:A, 0))=\"दृष्टि बाधित\"","v":{"$error":"#N/A"}}]
["34.पूर्ण पताः",null,{"$f":"IFERROR(INDEX(STUDENT_DATA!AH:AH, MATCH(PAGE1!M3, STUDENT_DATA!A:A, 0)), \"\")","v":""},null,null,null,null,null,null,null,null,null,null,null,null,null,null,null,null,null,null,null,null,null,"मूक-बधिर",{"$f":"INDEX(STUDENT_DATA!AE:AE, MATCH(M3, STUDENT_DATA!A:A, 0))=\"मूक-बधिर\"","v":{"$error":"#N/A"}}]
["35.परिवारजन के मोबाइल नंबर  1.+91-",null,null,null,{"$f":"IFERROR(INDEX(STUDENT_DATA!AB:AB, MATCH(PAGE1!M3, STUDENT_DATA!A:A, 0)), \"\")","v":""},null,null,"2.+91-",{"$f":"IFERROR(INDEX(STUDENT_DATA!AC:AC, MATCH(PAGE1!M3, STUDENT_DATA!A:A, 0)), \"\")","v":""},null,null,null,null,null,null,null,null,null,null,null,null,null,null,null,"चलन निःशक्तता",{"$f":"INDEX(STUDENT_DATA!AE:AE, MATCH(M3, STUDENT_DATA!A:A, 0))=\"चलन निःशक्तता\"","v":{"$error":"#N/A"}}]
["36.घर से विद्यालय की दूरी (कि.मी. में):-",null,null,null,{"$f":"IFERROR(INDEX(STUDENT_DATA!AQ:AQ, MATCH(PAGE1!M3, STUDENT_DATA!A:A, 0)), \"\")","v":""},"37. संपर्क हेतु EMAIL ID:-",null,null,null,null,null,null,null,null,null,null,null,null,null,null,null,null,null,null,"स्वलीनता (ऑटिज्म)",{"$f":"INDEX(STUDENT_DATA!AE:AE, MATCH(M3, STUDENT_DATA!A:A, 0))=\"स्वलीनता (ऑटिज्म)\"","v":{"$error":"#N/A"}}]
["38. परिवार के सम्बन्ध में अन्य जानकारियाँ",null,null,null,null,null,null,null,null,null,null,null,null,null,null,null,null,null,null,null,null,null,null,null,"मानसिक विमंदता",{"$f":"INDEX(STUDENT_DATA!AE:AE, MATCH(M3, STUDENT_DATA!A:A, 0))=\"मानसिक विमंदता\"","v":{"$error":"#N/A"}}]
["क्र. स. ","सम्बन्ध ","आधार नंबर ",null,"उच्चतम योग्यता",null,"व्यवसाय ","पेन नंबर ",null,"वार्षिक आय ","आय कर देते है\n  हाँ या नहीं",null,null,null,null,null,null,null,null,null,null,null,null,null,"मानसिक रुग्णता",{"$f":"INDEX(STUDENT_DATA!AE:AE, MATCH(M3, STUDENT_DATA!A:A, 0))=\"मानसिक रुग्णता\"","v":{"$error":"#N/A"}}]
[1,"पिता ",{"$f":"IFERROR(INDEX(STUDENT_DATA!AI:AI, MATCH(PAGE1!M3, STUDENT_DATA!A:A, 0)), \"\")","v":""},null,{"$f":"IFERROR(INDEX(STUDENT_DATA!AJ:AJ, MATCH(PAGE1!M3, STUDENT_DATA!A:A, 0)), \"\")","v":""},null,{"$f":"IFERROR(INDEX(STUDENT_DATA!AK:AK, MATCH(PAGE1!M3, STUDENT_DATA!A:A, 0)), \"\")","v":""},null,null,{"$f":"IFERROR(INDEX(STUDENT_DATA!AL:AL, MATCH(PAGE1!M3, STUDENT_DATA!A:A, 0)), \"\")","v":""},null,null,null,null,null,null,null,null,null,null,null,null,null,null,"बहु निःशक्तता",{"$f":"INDEX(STUDENT_DATA!AE:AE, MATCH(M3, STUDENT_DATA!A:A, 0))=\"बहु निःशक्तता\"","v":{"$error":"#N/A"}}]
[2,"संरक्षक ",null,null,null,null,null,null,null,null,null,null,null,null,null,null,null,null,null,null,null,null,null,null,"अधिगम अक्षमता",{"$f":"INDEX(STUDENT_DATA!AE:AE, MATCH(M3, STUDENT_DATA!A:A, 0))=\"अधिगम अक्षमता\"","v":{"$error":"#N/A"}}]
[3,"माता",{"$f":"IFERROR(INDEX(STUDENT_DATA!AM:AM, MATCH(PAGE1!M3, STUDENT_DATA!A:A, 0)), \"\")","v":""},null,{"$f":"IFERROR(INDEX(STUDENT_DATA!AN:AN, MATCH(PAGE1!M3, STUDENT_DATA!A:A, 0)), \"\")","v":""},null,{"$f":"IFERROR(INDEX(STUDENT_DATA!AO:AO, MATCH(PAGE1!M3, STUDENT_DATA!A:A, 0)), \"\")","v":""},null,null,{"$f":"IFERROR(INDEX(STUDENT_DATA!AP:AP, MATCH(PAGE1!M3, STUDENT_DATA!A:A, 0)), \"\")","v":""},null,null,null,null,null,null,null,null,null,null,null,null,null,null,"सेरेब्रल पाल्सी",{"$f":"INDEX(STUDENT_DATA!AE:AE, MATCH(M3, STUDENT_DATA!A:A, 0))=\"सेरेब्रल पाल्सी\"","v":{"$error":"#N/A"}}]
[null,null,null,null,null,null,null,null,null,null,null,null,null,null,null,null,null,null,null,null,null,null,null,null,"अधिगम अक्षमता",{"$f":"INDEX(STUDENT_DATA!AE:AE, MATCH(M3, STUDENT_DATA!A:A, 0))=\"अधिगम अक्षमता\"","v":{"$error":"#N/A"}}]
[null,null,null,null,null,null,null,null,null,null,null,null,null,null,null,null,null,null,null,null,null,null,null,null,"अन्य",{"$f":"INDEX(STUDENT_DATA!AE:AE, MATCH(M3, STUDENT_DATA!A:A, 0))=\"अन्य\"","v":{"$error":"#N/A"}}]

{"sheet":"PAGE2","index":3,"n_rows":44,"n_cols":12,"rows_kept":44,"cut":false,"hidden":false,"merged":[[1,0,1,11],[3,10,3,11],[3,8,3,9],[2,8,2,11],[2,0,3,0],[2,1,3,3],[2,4,3,4],[2,5,3,7],[7,1,7,3],[4,5,4,7],[5,5,5,7],[6,5,6,7],[7,5,7,7],[4,1,4,3],[5,1,5,3],[6,1,6,3],[4,8,4,9],[5,8,5,9],[6,8,6,9],[7,8,7,9],[4,10,4,11],[5,10,5,11],[6,10,6,11],[7,10,7,11],[13,9,13,10],[15,0,15,11],[17,7,17,11],[17,1,17,3],[9,0,9,11],[11,0,11,11],[12,0,12,11],[13,0,13,3],[13,4,13,7],[10,1,10,3],[10,5,10,6],[10,8,10,9],[14,1,14,11],[29,0,29,11],[30,0,30,1],[30,2,30,3],[30,10,30,11],[26,5,26,11],[26,0,26,2],[28,1,28,2],[28,8,28,11],[41,0,41,11],[31,6,31,7],[32,6,32,7],[33,6,33,7],[35,0,35,1],[35,9,35,11],[35,5,35,7],[31,0,31,1],[32,0,32,1],[33,0,33,1],[31,3,31,4],[32,3,32,4],[33,3,33,4],[31,10,31,11],[32,10,32,11],[33,10,33,11],[43,8,43,9],[23,0,23,11],[24,8,24,10],[25,10,25,11],[25,7,25,9],[26,3,26,4],[42,0,42,1],[42,2,42,3],[42,10,42,11],[43,0,43,1],[43,5,43,7],[37,6,37,11],[37,1,37,3],[38,0,38,11],[40,8,40,11],[40,1,40,3],[18,0,18,11],[20,0,20,4],[20,7,20,10],[20,5,20,6],[25,0,25,6],[19,3,19,6],[19,8,19,10],[24,3,24,6],[22,1,22,2],[22,8,22,11]]}
["39.विद्यार्थी एकल कन्या हैं:-",null,null," हाँ","नहीं"]
["40.अगर विद्यार्थी के सगे भाई बहिन इसी विद्यालय में पढ़ रहें हैं तोः-"]
["क्र.सं","प्रवेशांक (S.R. No.)",null,null,"कक्षा","भाई/बहिन का नाम",null,null,"सम्बन्ध"]
[null,null,null,null,null,null,null,null,"भाई/बहिन",null,"बड़ा/छोटा"]
[1]
[2]
[3]
[4]
[]
["घोषणा शपथ पत्र"]
["मैं   ",{"$f":"PAGE1!D6","v":""},null,null,"जाति",null,null,"निवासी",{"$f":"PAGE1!C35","v":""},null,"आयु"]
["घोषणा करता/करती हूँ कि इस प्रवेश पत्र में भरी गई समस्त सूचनाएं सही हैं। मैं यह विश्वास दिलाता/दिलाती हूँ कि उक्त छात्र/छात्रा"]
["नियमित रूप से विद्यालय आएगा / आएगी और विद्यालय के समस्त नियमों व अनुशासन सम्बंधित निर्देशों का पालन"]
["करेगा/करेगी। मैं अपने पुत्र/पुत्री  ",null,null,null,{"$f":"PAGE1!C4","v":""},null,null,null,"जन्म तिथि",{"$f":"PAGE1!C5","v":""},null,"जिसे कक्षा"]
[{"$f":"PAGE1!E17","v":""},"में प्रवेश दिलवाना चाहता हूँ, का विवाह बालिग होने से पूर्व नहीं करूँगा / करूँगी एवं बाल विवाह, रोकथाम अधिनियम"]
["1929 की पालना करूँगा / करूँगी और मैं इन सब के लिए प्रतिबद्ध रहूँगा / रहेंगी।"]
[]
["दिनांक :-",{"$f":"PAGE1!C3","v":""},null,null,null,null,null,"हस्ताक्षर शपथ गृहिता (पिता/माता/संरक्षक)"]
["आय प्रमाण-पत्र"]
["प्रमाणित किया जाता है कि श्री/श्रीमती ",null,null,{"$f":"PAGE1!D6","v":""},null,null,null,"छात्र/छात्रा",{"$f":"PAGE1!C4","v":""},null,null,"के"]
["पिता/माता/संरक्षक हैं , इनकी कुल वार्षिक आय ",null,null,null,null,{"$f":"IF(SUM(PAGE1!J40:J42)=0, \"\", SUM(PAGE1!J40:J42))","v":""},null," के रूपये हैं। ये आयकर देते हैं। नहीं देते हैं।"]
[]
["दिनांक :-",{"$f":"PAGE1!C3","v":""},null,null,null,null,null,null,"हस्ताक्षर प्रमाणिकरण अधिकारी"]
["आय प्रमाण-पत्र (राज्य सरकार के कर्मचारियों के लिए)"]
["प्रमाणित किया जाता है कि श्री/श्रीमती",null,null,null,null,null,null,"छात्र/छात्रा",null,null,null,"के"]
["पिता/माता/संरक्षक हैं. वे राजस्थान राज्य के कर्मचारी है और मेरे अधीन पद",null,null,null,null,null,null,null,null,null,"पर कार्यरत हैं।"]
["इनकी कुल वार्षिक आय",null,null,null,null,"रुपये है। ये आयकर देते है। नहीं देते हैं।"]
[]
["दिनांक :-",null,null,null,null,null,null,null,"हस्ताक्षर विभागीय अधिकारी (मय पद मोहर)"]
["कार्यालय उपयोग हेतु"]
["प्रवेश दिनांक :-",null,{"$f":"PAGE1!C3","v":""},null,null,null,null,null,null,"प्रवेशांक :-",{"$f":"PAGE1!K3","v":""}]
["राजकीय कोष शुल्क",null,null,"रसीद संख्या",null,null,"बुक संख्या",null,null,"दिनांक"]
["छात्रकोष शुल्क",null,null,"रसीद संख्या",null,null,"बुक संख्या",null,null,"दिनांक"]
["विकास शुल्क",null,null,"रसीद संख्या",null,null,"बुक संख्या",null,null,"दिनांक"]
[]
["हस्ताक्षर जांचकर्ता",null,null,null,null,"हस्ताक्षर कक्षाध्यापक",null,null,null,"हस्ताक्षर शुल्क प्राप्तकर्ता"]
[]
["छात्र/छात्रा",{"$f":"PAGE1!C4","v":""},null,null,"कक्षा ",{"$f":"PAGE1!D10","v":""},"में प्रवेश के लिए विषयाध्यापकों द्वारा ली गई परीक्षा के आधार"]
["पर योग्य/अयोग्य पाया गया है तथा उक्त छात्र/छात्रा को कक्षा में प्रवेश की स्वीकृति / अस्वीकृति प्रदान की जाती है।"]
[]
["दिनांक :-",null,null,null,null,null,null,null,"हस्ताक्षर संस्था प्रधान (मय पद मोहर)"]
["41. आवेदन पत्र के साथ सलंग्न प्रमाणपत्र :-"]
["1.जाति प्रमाणपत्र",null,"2. जन्म प्रमाणपत्र",null,"3. स्थानान्तरण प्रमाणपत्र",null,null,"4.पूर्व कक्षा की अंकतालिका",null,null,"5. आधार"]
["6.भामाशाह कार्ड",null,"7.CWSN प्रमाणपत्र",null,null,"8. बी.पी.एल. प्रमाणपत्र",null,null,"9. आय प्रमाणपत्र"]